fUST/lending_fUST_20250817
["ID","MTS","AMOUNT","RATE_DAILY","PERIOD"]
[379734974,1755393041377,-480.0,0.00020568,2]
[379734976,1755393041387,-480.0,0.00020568,2]
[379734978,1755393041396,-629.74,0.00020568,2]
[379734980,1755393041405,-516.99,0.00020568,2]
[379734982,1755393041421,-480.0,0.00020568,2]
[379734984,1755393041431,-2174.14,0.00020568,2]
[379734986,1755393041440,-480.0,0.00020568,2]
[379734988,1755393041449,-480.0,0.00020568,2]
[379734990,1755393041458,-480.0,0.00020568,2]
[379734992,1755393041468,-480.0,0.00020568,2]
[379734994,1755393041477,-851.19,0.00020568,2]
[379734996,1755393041486,-905.11,0.00020569,2]
[379734998,1755393041496,-1201.08,0.00020604,10]
[379735000,1755393041506,-232.11368524,0.00020614,2]
[379735002,1755393041515,-215.68093138,0.00020614,2]
[379735004,1755393041524,-160.0,0.00020614,2]
[379735006,1755393041533,-528.38334358,0.00020614,2]
[379735008,1755393041543,-417.15472785,0.00020614,2]
[379735009,1755393041552,-843.58077381,0.00020614,2]
[379735011,1755393041561,-462.1417622,0.00020614,2]
[379735013,1755393041571,-160.0,0.00020614,2]
[379735015,1755393041580,-12681.6255076,0.00020614,2]
[379735017,1755393041589,-298.73527881,0.0002064,2]
[379735019,1755393041598,-371.8,0.00020681,2]
[379735021,1755393041608,-163.39858246,0.00020685,2]
[379735023,1755393041617,-200.0,0.00020698,20]
[379735025,1755393041626,-200.0,0.00020698,20]
[379735027,1755393041636,-200.0,0.00020698,20]
[379735029,1755393041645,-200.0,0.00020698,20]
[379735031,1755393041654,-200.0,0.00020698,20]
[379735033,1755393041663,-200.0,0.00020698,20]
[379735035,1755393041673,-200.0,0.00020698,20]
[379735037,1755393041683,-200.0,0.00020698,20]
[379735039,1755393041692,-200.0,0.00020698,20]
[379735041,1755393041702,-200.0,0.00020698,20]
[379735043,1755393041711,-600.0,0.00020698,20]
[379735045,1755393041720,-214.49520672,0.00020701,2]
[379735047,1755393041730,-1977.80815826,0.00020742,2]
[379735049,1755393041739,-1000.0,0.0002079,2]
[379735051,1755393041749,-305.24,0.00020831,3]
[379735053,1755393041758,-1622.24,0.00020839,2]
[379735055,1755393041768,-480.0,0.00020839,2]
[379735057,1755393041777,-480.0,0.00020839,2]
[379735059,1755393041786,-778.4,0.00020839,2]
[379735061,1755393041795,-1392.21,0.00020839,2]
[379735063,1755393041804,-480.0,0.00020839,2]
[379735065,1755393041814,-784.88,0.00020839,2]
[379735067,1755393041823,-480.0,0.00020839,2]
[379735069,1755393041832,-480.0,0.00020839,2]
[379735071,1755393041841,-480.0,0.00020839,2]
[379735073,1755393041850,-2261.93,0.00020839,2]
[379735075,1755393041859,-480.0,0.00020839,2]
[379735077,1755393041868,-724.84,0.00020839,2]
[379735079,1755393041878,-480.0,0.00020839,2]
[379735081,1755393041887,-1093.76,0.00020839,2]
[379735083,1755393041896,-480.0,0.00020839,2]
[379735085,1755393041905,-480.0,0.00020839,2]
[379735087,1755393041915,-1175.47,0.00020839,2]
[379735089,1755393041923,-302.77989878,0.00020839,2]
[379735091,1755393041933,-480.0,0.0002084,2]
[379735093,1755393041942,-480.0,0.0002084,2]
[379735095,1755393041951,-480.0,0.0002084,2]
[379735097,1755393041960,-480.0,0.0002084,2]
[379735099,1755393041970,-480.0,0.0002084,2]
[379735101,1755393041979,-480.0,0.0002084,2]
[379735103,1755393041989,-480.0,0.0002084,2]
[379735105,1755393041998,-480.0,0.0002084,2]
[379735107,1755393042008,-445.68020098,0.0002084,2]
[379735109,1755393042017,-480.0,0.0002084,2]
[379735111,1755393042027,-480.0,0.0002084,2]
[379735113,1755393042036,-480.0,0.0002084,2]
[379735115,1755393042046,-480.0,0.0002084,2]
[379735117,1755393042055,-271.91527113,0.0002084,2]
[379735119,1755393042064,-450.89748224,0.0002084,2]
[379735121,1755393042074,-388.32516197,0.0002084,2]
[379735123,1755393042083,-480.0,0.0002084,2]
[379735125,1755393042092,-321.7471932,0.0002084,2]
[379735127,1755393042102,-480.0,0.0002084,2]
[379735129,1755393042111,-425.5500696,0.0002084,2]
[379735131,1755393042120,-480.0,0.0002084,2]
[379735133,1755393042130,-480.0,0.0002084,2]
[379735135,1755393042139,-361.58398787,0.0002084,2]
[379735137,1755393042148,-664.88,0.0002084,2]
[379735139,1755393042157,-480.0,0.0002084,2]
[379735141,1755393042166,-480.0,0.0002084,2]
[379735143,1755393042176,-480.0,0.0002084,2]
[379735145,1755393042185,-480.0,0.0002084,2]
[379735147,1755393042194,-480.0,0.0002084,2]
[379735149,1755393042203,-480.0,0.0002084,2]
[379735151,1755393042212,-4015.35,0.0002084,2]
[379735153,1755393042221,-480.0,0.0002084,2]
[379735155,1755393042230,-480.0,0.0002084,2]
[379735157,1755393042239,-480.0,0.0002084,2]
[379735159,1755393042248,-480.0,0.0002084,2]
[379735161,1755393042257,-1204.85,0.0002084,2]
[379735163,1755393042266,-480.0,0.0002084,2]
[379735164,1755393042276,-434.17136682,0.0002084,2]
[379735167,1755393042285,-542.29,0.0002084,2]
[379735169,1755393042294,-480.0,0.0002084,2]
[379735170,1755393042303,-886.16,0.0002084,2]
[379735172,1755393042312,-480.0,0.0002084,2]
[379735174,1755393042322,-480.0,0.0002084,2]
[379735176,1755393042332,-480.0,0.0002084,2]
[379735179,1755393042341,-480.0,0.0002084,2]
[379735180,1755393042350,-480.0,0.0002084,2]
[379735182,1755393042360,-480.0,0.0002084,2]
[379735184,1755393042370,-480.0,0.0002084,2]
[379735186,1755393042379,-480.0,0.0002084,2]
[379735188,1755393042388,-645.06,0.0002084,2]
[379735190,1755393042397,-480.0,0.00020841,2]
[379735192,1755393042407,-480.0,0.00020841,2]
[379735194,1755393042420,-480.0,0.00020841,2]
[379735196,1755393042429,-538.02,0.00020841,2]
[379735198,1755393042438,-480.0,0.00020841,2]
[379735200,1755393042447,-480.0,0.00020841,2]
[379735202,1755393042457,-480.0,0.00020841,2]
[379735204,1755393042467,-584.0,0.00020841,2]
[379735206,1755393042476,-315.42520314,0.00020841,2]
[379735208,1755393042486,-346.26485428,0.00020841,2]
[379735210,1755393042496,-480.0,0.00020841,2]
[379735212,1755393042505,-480.0,0.00020841,2]
[379735214,1755393042514,-480.0,0.00020841,2]
[379735216,1755393042524,-480.0,0.00020841,2]
[379735218,1755393042534,-679.1,0.00020841,2]
[379735220,1755393042544,-480.0,0.00020841,2]
[379735222,1755393042553,-480.0,0.00020841,2]
[379735224,1755393042563,-480.0,0.00020841,2]
[379735226,1755393042572,-480.0,0.00020841,2]
[379735228,1755393042582,-484.73,0.00020841,2]
[379735231,1755393042592,-480.0,0.00020841,2]
[379735232,1755393042601,-480.0,0.00020841,2]
[379735234,1755393042610,-480.0,0.00020841,2]
[379735236,1755393042619,-7402.45,0.00020841,2]
[379735238,1755393042629,-4934.96,0.00020841,2]
[379735240,1755393042638,-480.0,0.00020841,2]
[379735242,1755393042647,-162.77480364,0.00020841,2]
[379735244,1755393042656,-480.0,0.00020842,2]
[379735246,1755393042666,-480.0,0.00020842,2]
[379735248,1755393042676,-480.0,0.00020842,2]
[379735250,1755393042685,-480.0,0.00020842,2]
[379735252,1755393042696,-212.91626834,0.00020842,2]
[379735254,1755393042705,-629.74,0.00020842,2]
[379735256,1755393042714,-516.99,0.00020842,2]
[379735258,1755393042723,-480.0,0.00020842,2]
[379735260,1755393042732,-2174.14,0.00020842,2]
[379735262,1755393042741,-480.0,0.00020842,2]
[379735264,1755393042751,-480.0,0.00020842,2]
[379735266,1755393042760,-480.0,0.00020842,2]
[379735268,1755393042769,-480.0,0.00020842,2]
[379735270,1755393042778,-851.19,0.00020842,2]
[379735272,1755393042787,-905.11,0.00020843,2]
[379735274,1755393042797,-785.77,0.00020849,2]
[379735276,1755393042806,-163.39858246,0.00020849,2]
[379735278,1755393042815,-371.8,0.00020893,3]
[379735280,1755393042825,-1161.151632,0.000209,2]
[379735282,1755393042834,-2228.66081995,0.00020907,2]
[379735284,1755393042844,-152.260748,0.00020961,2]
[379735286,1755393042854,-852.03728361,0.00020974,2]
[379735290,1755393042863,-163.39858246,0.00020986,2]
[379735293,1755393042873,-100000.0,0.0002099,2]
[379735296,1755393042882,-17696.56494585,0.0002099,2]
[379735299,1755393042891,-3000.0,0.00021,2]
[379735301,1755393042901,-3000.0,0.0002101,2]
[379735304,1755393042910,-1977.80815823,0.00021016,2]
[379735306,1755393042920,-3000.0,0.0002102,2]
[379735308,1755393042929,-500.0,0.00021026,2]
[379735310,1755393042939,-3000.0,0.0002103,2]
[379735312,1755393042948,-3000.0,0.0002104,2]
[379735314,1755393042958,-3000.0,0.0002105,2]
[379735316,1755393042967,-800.0,0.0002105,2]
[379735318,1755393042977,-3000.0,0.0002106,2]
[379735320,1755393042986,-1706.01262155,0.0002107,2]
[379735738,1755393047305,-1293.98737845,0.0002107,2]
[379735740,1755393047314,-3000.0,0.0002108,2]
[379735742,1755393047323,-3680.055604,0.0002109,2]
[379735744,1755393047332,-160.7608968,0.00021104,2]
[379735746,1755393047341,-160.7608968,0.00021104,2]
[379735747,1755393047351,-160.7608968,0.00021104,2]
[379735749,1755393047360,-371.8,0.00021104,3]
[379735751,1755393047370,-1622.24,0.00021113,2]
[379735754,1755393047381,-480.0,0.00021113,2]
[379735756,1755393047391,-480.0,0.00021113,2]
[379735758,1755393047400,-778.4,0.00021113,2]
[379735760,1755393047410,-1392.21,0.00021113,2]
[379735762,1755393047422,-480.0,0.00021113,2]
[379735763,1755393047431,-784.88,0.00021113,2]
[379735765,1755393047441,-480.0,0.00021113,2]
[379735766,1755393047450,-480.0,0.00021113,2]
[379735767,1755393047461,-480.0,0.00021113,2]
[379735768,1755393047470,-2261.93,0.00021113,2]
[379735769,1755393047481,-480.0,0.00021113,2]
[379735770,1755393047492,-724.84,0.00021113,2]
[379735771,1755393047501,-480.0,0.00021113,2]
[379735772,1755393047510,-1093.76,0.00021113,2]
[379735773,1755393047519,-480.0,0.00021113,2]
[379735774,1755393047529,-480.0,0.00021113,2]
[379735775,1755393047538,-1175.47,0.00021113,2]
[379735776,1755393047548,-480.0,0.00021114,2]
[379735777,1755393047557,-480.0,0.00021114,2]
[379735779,1755393047566,-480.0,0.00021114,2]
[379735780,1755393047575,-480.0,0.00021114,2]
[379735781,1755393047584,-664.88,0.00021114,2]
[379735783,1755393047594,-480.0,0.00021114,2]
[379735785,1755393047603,-480.0,0.00021114,2]
[379735787,1755393047612,-480.0,0.00021114,2]
[379735789,1755393047623,-480.0,0.00021114,2]
[379735791,1755393047632,-480.0,0.00021114,2]
[379735793,1755393047644,-480.0,0.00021114,2]
[379735795,1755393047654,-4015.35,0.00021114,2]
[379735797,1755393047663,-480.0,0.00021114,2]
[379735799,1755393047672,-480.0,0.00021114,2]
[379735801,1755393047681,-480.0,0.00021114,2]
[379735803,1755393047691,-480.0,0.00021114,2]
[379735805,1755393047699,-1204.85,0.00021114,2]
[379735807,1755393047709,-480.0,0.00021114,2]
[379735809,1755393047718,-542.29,0.00021114,2]
[379735811,1755393047727,-480.0,0.00021114,2]
[379735813,1755393047736,-886.16,0.00021114,2]
[379735815,1755393047745,-480.0,0.00021114,2]
[379735817,1755393047755,-480.0,0.00021114,2]
[379735819,1755393047764,-480.0,0.00021114,2]
[379735820,1755393047772,-480.0,0.00021114,2]
[379735823,1755393047782,-480.0,0.00021114,2]
[379735824,1755393047791,-480.0,0.00021114,2]
[379735826,1755393047800,-187.17276164,0.00021114,2]
[379735828,1755393047809,-480.0,0.00021114,2]
[379735830,1755393047818,-645.06,0.00021114,2]
[379735832,1755393047828,-500.0,0.00021114,2]
[379735834,1755393047838,-480.0,0.00021115,2]
[379735836,1755393047847,-480.0,0.00021115,2]
[379735838,1755393047857,-480.0,0.00021115,2]
[379735840,1755393047869,-538.02,0.00021115,2]
[379735842,1755393047879,-480.0,0.00021115,2]
[379735844,1755393047889,-480.0,0.00021115,2]
[379735846,1755393047900,-334.17523318,0.00021115,2]
[379735849,1755393047910,-584.0,0.00021115,2]
[379735850,1755393047929,-480.0,0.00021115,2]
[379735853,1755393047940,-480.0,0.00021115,2]
[379735855,1755393047949,-480.0,0.00021115,2]
[379735857,1755393047959,-480.0,0.00021115,2]
[379735859,1755393047968,-679.1,0.00021115,2]
[379735861,1755393047977,-480.0,0.00021115,2]
[379735863,1755393047987,-480.0,0.00021115,2]
[379735865,1755393047996,-480.0,0.00021115,2]
[379735867,1755393048006,-480.0,0.00021115,2]
[379735869,1755393048015,-484.73,0.00021115,2]
[379735871,1755393048025,-480.0,0.00021115,2]
[379735873,1755393048035,-480.0,0.00021115,2]
[379735875,1755393048045,-480.0,0.00021115,2]
[379735877,1755393048054,-6915.98581447,0.00021115,2]
[379735899,1755393048262,-486.46418553,0.00021115,2]
[379735901,1755393048272,-4934.96,0.00021115,2]
[379735903,1755393048282,-480.0,0.00021115,2]
[379735905,1755393048291,-151.0,0.00021115,2]
[379735907,1755393048301,-151.0,0.00021115,2]
[379735909,1755393048311,-480.0,0.00021116,2]
[379735911,1755393048321,-480.0,0.00021116,2]
[379735913,1755393048330,-480.0,0.00021116,2]
[379735915,1755393048340,-536.86098939,0.00021116,2]
[379735917,1755393048349,-516.99,0.00021116,2]
[379735919,1755393048359,-151.0,0.00021116,2]
[379735921,1755393048368,-480.0,0.00021116,2]
[379735923,1755393048378,-151.0,0.00021116,2]
[379735926,1755393048390,-151.0,0.00021116,2]
[379735927,1755393048400,-151.0,0.00021116,2]
[379735929,1755393048410,-151.0,0.00021116,2]
[379735932,1755393048422,-2174.14,0.00021116,2]
[379735933,1755393048432,-155.515332,0.00021116,2]
[379735935,1755393048442,-151.0,0.00021116,2]
[379735937,1755393048452,-151.0,0.00021116,2]
[379735939,1755393048462,-398.117598,0.00021116,2]
[379735941,1755393048472,-151.0,0.00021116,2]
[379735943,1755393048482,-398.117598,0.00021116,2]
[379735945,1755393048492,-151.0,0.00021116,2]
[379735947,1755393048504,-151.0,0.00021116,2]
[379735950,1755393048515,-159.875031,0.00021116,2]
[379735952,1755393048525,-159.875031,0.00021116,2]
[379735954,1755393048535,-151.0,0.00021116,2]
[379735956,1755393048545,-151.0,0.00021116,2]
[379735957,1755393048556,-480.0,0.00021116,2]
[379735960,1755393048566,-151.0,0.00021116,2]
[379735961,1755393048575,-151.0,0.00021116,2]
[379735963,1755393048585,-480.0,0.00021116,2]
[379735966,1755393048596,-151.0,0.00021116,2]
[379735968,1755393048605,-151.0,0.00021116,2]
[379735969,1755393048615,-151.0,0.00021116,2]
[379735972,1755393048625,-480.0,0.00021116,2]
[379735974,1755393048634,-480.0,0.00021116,2]
[379735976,1755393048644,-851.19,0.00021116,2]
[379735978,1755393048654,-905.11,0.00021117,2]
[379735980,1755393048664,-455.45003419,0.00021118,2]
[379735982,1755393048673,-1819.97833662,0.00021118,2]
[379735984,1755393048682,-525.67310692,0.00021118,2]
[379735986,1755393048692,-1829.35819574,0.00021118,2]
[379736001,1755393048829,-1000.9,0.00020732,10]
[379736003,1755393048839,-273.33423195,0.00021118,2]
[379736005,1755393048849,-151.0,0.00021119,2]
[379736007,1755393048860,-151.0,0.00021119,2]
[379736009,1755393048869,-151.0,0.00021119,2]
[379736011,1755393048879,-151.0,0.00021119,2]
[379736013,1755393048889,-910.0,0.00021119,2]
[379736015,1755393048898,-163.46456632,0.00021119,2]
[379736017,1755393048908,-151.0,0.00021119,2]
[379736019,1755393048917,-151.0,0.00021119,2]
[379736021,1755393048927,-198.35421511,0.00021119,2]
[379736023,1755393048938,-151.0,0.00021119,2]
[379736025,1755393048948,-151.0,0.00021121,2]
[379736027,1755393048957,-151.0,0.00021121,2]
[379736029,1755393048967,-151.0,0.00021121,2]
[379736031,1755393048977,-151.0,0.00021121,2]
[379736033,1755393048987,-151.0,0.00021121,2]
[379736035,1755393048997,-151.0,0.00021121,2]
[379736037,1755393049006,-151.0,0.00021121,2]
[379736039,1755393049016,-151.0,0.00021121,2]
[379736041,1755393049026,-972.0,0.00021123,2]
[379736043,1755393049036,-2152.0,0.00021123,2]
[379736045,1755393049046,-681.666,0.00021123,2]
[379736047,1755393049055,-163.39858246,0.00021151,2]
[379736049,1755393049065,-272.0,0.00021155,2]
[379736051,1755393049075,-150.0,0.00021165,2]
[379736053,1755393049084,-240.27,0.00021165,2]
[379736055,1755393049094,-150.028,0.00021165,2]
[379736057,1755393049104,-150.101,0.00021165,2]
[379736059,1755393049113,-150.0,0.00021165,2]
[379736061,1755393049122,-219.175,0.00021165,2]
[379736063,1755393049132,-160.0,0.00021171,5]
[379736065,1755393049142,-1977.80815823,0.0002129,2]
[379736067,1755393049152,-163.39858246,0.00021315,2]
[379736069,1755393049161,-30.54422512,0.00021316,3]
[379736375,1755393052595,490.30796505,0.00020292,2]
[379736536,1755393054128,716.55,0.00020294,2]
[379737083,1755393059986,480.0,0.00020293,2]
[379737460,1755393063817,160.0,0.00020254,4]
[379737495,1755393064141,160.0,0.00020139,3]
[379738199,1755393071719,377.88,0.00019902,2]
[379738243,1755393072118,524.78,0.00020293,2]
[379738249,1755393072175,1721.19,0.00020293,2]
[379739029,1755393118117,480.0,0.00020293,2]
[379739030,1755393119915,686.69,0.0002002,2]
[379739031,1755393120433,686.69,0.00020294,2]
[379739034,1755393122324,500.0,0.00018834,2]
[379739035,1755393155388,2005.76774134,0.000199,2]
[379739036,1755393160385,373.07,0.00019888,2]
[379739037,1755393181657,480.0,0.00020293,2]
[379739039,1755393197210,378.96588502,0.00020293,2]
[379739040,1755393211100,1649.47,0.00020293,2]
[379739041,1755393221425,480.0,0.00020293,2]
[379739042,1755393242107,368.33,0.00019903,2]
[379739043,1755393283181,480.0,0.00020293,2]
[379739044,1755393288864,480.0,0.00020293,2]
[379739045,1755393319565,480.0,0.00020293,2]
[379739047,1755393328350,372.33,0.000199,2]
[379739048,1755393334168,1938.90881688,0.000199,2]
[379739049,1755393356693,34674.47181383,0.00028,120]
[379739050,1755393368382,500.0,0.00018834,2]
[379739051,1755393371959,500.0,0.0001993,2]
[379739052,1755393382656,480.0,0.00020293,2]
[379739053,1755393394679,480.0,0.00020293,2]
[379739054,1755393395704,673.86,0.00020293,2]
[379739055,1755393409559,480.0,0.00020293,2]
[379739056,1755393411153,367.59,0.00019901,2]
[379739057,1755393441015,480.0,0.00020293,2]
[379739058,1755393495023,362.92,0.00019901,2]
[379739059,1755393517438,1874.27852281,0.000199,2]
[379739060,1755393519950,5346.21,0.00020293,2]
[379739061,1755393526670,480.0,0.00020293,2]
[379739063,1755393539652,645.78,0.00020293,2]
[379739064,1755393578689,358.3,0.00019905,2]
[379739065,1755393593899,502.92,0.00020293,2]
[379739066,1755393594207,629.47,0.00020293,2]
[379739070,1755393635018,5123.45,0.00020292,2]
[379739071,1755393646745,156.0,0.000287,120]
[379739072,1755393648863,156.0,0.000287,120]
[379739073,1755393649365,156.0,0.000287,120]
[379739074,1755393649755,156.0,0.000287,120]
[379739075,1755393650168,156.0,0.000287,120]
[379739076,1755393662875,353.74,0.000199,2]
[379739077,1755393665346,156.0,0.000287,120]
[379739078,1755393668540,156.0,0.000287,120]
[379739079,1755393675239,156.0,0.0002,2]
[379739080,1755393676167,156.0,0.0002,2]
[379739081,1755393676582,156.0,0.0002,2]
[379739082,1755393681626,156.0,0.0002,2]
[379739083,1755393682392,156.0,0.0002,2]
[379739084,1755393683157,156.0,0.0002,2]
[379739085,1755393684344,156.0,0.0002,2]
[379739086,1755393686664,156.0,0.0002,2]
[379739087,1755393688161,1811.80257204,0.000199,2]
[379739088,1755393692762,156.0,0.0002,2]
[379739089,1755393696395,287.2839101,0.0001955,2]
[379739090,1755393710627,481.96,0.00020292,2]
[379739091,1755393713609,240.015251,0.00013699,2]
[379739092,1755393713659,240.015251,0.00020187,2]
[379739093,1755393720952,1580.75,0.00020293,2]
[379739095,1755393725270,603.24,0.00020293,2]
[379739098,1755393743690,349.24,0.000199,2]
[379739107,1755393832752,344.79,0.00019911,2]
[379739109,1755393847232,1514.88,0.00020292,2]
[379739111,1755393857050,1751.40915303,0.000199,2]
[379739113,1755393866389,156.0,0.000287,120]
[379739114,1755393867627,156.0,0.000287,120]
[379739115,1755393868074,156.0,0.000287,120]
[379739118,1755393870585,156.0,0.000287,120]
[379739119,1755393871009,156.0,0.000287,120]
[379739122,1755393882541,156.0,0.0002,2]
[379739123,1755393883070,156.0,0.0002,2]
[379739124,1755393883451,156.0,0.0002,2]
[379739125,1755393885115,156.0,0.0002,3]
[379739126,1755393885539,156.0,0.0002,3]
[379739131,1755393915610,340.4,0.00019911,2]
[379739133,1755393926144,480.0,0.00020293,2]
[379739135,1755393938610,480.0,0.00020293,2]
[379739139,1755393969895,480.0,0.00020293,2]
[379739141,1755393990945,157.404658,0.00019863,2]
[379739143,1755393996532,336.07,0.00019911,2]
[379739149,1755394028199,480.0,0.00020292,2]
[379739150,1755394031028,1693.0288479,0.000199,2]
[379739152,1755394038752,404.18,0.00020293,2]
[379739153,1755394039960,480.0,0.00020292,2]
[379739156,1755394052926,618.87,0.00020293,2]
[379739158,1755394055045,480.0,0.00020292,2]
[379739160,1755394079257,331.79,0.00019909,2]
[379739175,1755394154755,593.08,0.00020292,2]
[379739177,1755394175373,327.57,0.00019911,2]
[379739181,1755394200086,1636.59455297,0.000199,2]
[379739183,1755394205034,5000.0,0.0001833,2]
[379739184,1755394205319,5000.0,0.0001833,2]
[379739185,1755394205613,5000.0,0.0001833,2]
[379739187,1755394205922,5000.0,0.0001833,2]
[379739188,1755394206203,5000.0,0.0001833,2]
[379739189,1755394209677,167.71729442,0.000203,2]
[379739191,1755394214792,581.81,0.00020293,2]
[379739216,1755394232721,-474.58730865,0.00020306,2]
[379739217,1755394232731,-160.0,0.00020368,5]
[379739218,1755394232740,-450.95309901,0.00020403,2]
[379739222,1755394232804,-1185.64145383,0.00020403,2]
[379739223,1755394232813,-160.0,0.00020483,6]
[379739224,1755394232823,-152.15732314,0.00020552,2]
[379739225,1755394232832,-305.17171298,0.00020552,2]
[379739226,1755394232841,-5141.90697035,0.00020552,2]
[379739227,1755394232851,-300.0,0.00020552,2]
[379739228,1755394232860,-227.0,0.00020552,2]
[379739229,1755394232870,-300.0,0.00020552,2]
[379739230,1755394232880,-300.0,0.00020552,2]
[379739232,1755394232889,-11.26736611,0.00020552,2]
[379739236,1755394232900,-652.05326671,0.00020552,2]
[379739289,1755394238590,-536.67936718,0.00020552,2]
[379739290,1755394238606,-242.3624291,0.00020552,2]
[379739291,1755394238616,-480.0,0.00020563,2]
[379739292,1755394238626,-480.0,0.00020563,2]
[379739293,1755394238636,-957.04,0.00020563,2]
[379739294,1755394238646,-474.44496303,0.00020563,2]
[379739295,1755394238656,-480.0,0.00020564,2]
[379739296,1755394238666,-400.87716478,0.00020564,2]
[379739297,1755394238676,-480.0,0.00020564,2]
[379739298,1755394238685,-480.0,0.00020564,2]
[379739299,1755394238695,-581.77,0.00020564,2]
[379739300,1755394238707,-480.0,0.00020564,2]
[379739301,1755394238717,-480.0,0.00020564,2]
[379739302,1755394238727,-480.0,0.00020564,2]
[379739303,1755394238736,-422.14734674,0.00020564,2]
[379739304,1755394238746,-480.0,0.00020564,2]
[379739305,1755394238755,-480.0,0.00020564,2]
[379739306,1755394238765,-480.0,0.00020564,2]
[379739307,1755394238775,-3346.12,0.00020564,2]
[379739308,1755394238785,-480.0,0.00020564,2]
[379739309,1755394238794,-1438.63,0.00020564,2]
[379739310,1755394238804,-480.0,0.00020564,2]
[379739311,1755394238814,-480.0,0.00020564,2]
[379739313,1755394238824,-480.0,0.00020564,2]
[379739315,1755394238833,-480.0,0.00020564,2]
[379739317,1755394238843,-549.63668429,0.00020564,2]
[379739319,1755394238852,-298.69177197,0.00020564,2]
[379739321,1755394238865,-181.30822803,0.00020564,2]
[379739322,1755394238874,-480.0,0.00020564,2]
[379739323,1755394238885,-455.21578375,0.00020564,2]
[379739643,1755394243786,-259.73421625,0.00020564,2]
[379739645,1755394243796,-480.0,0.00020564,2]
[379739647,1755394243806,-1218.18,0.00020564,2]
[379739649,1755394243815,-1979.19,0.00020564,2]
[379739651,1755394243824,-480.0,0.00020564,2]
[379739653,1755394243833,-480.0,0.00020564,2]
[379739656,1755394243843,-262.12591637,0.00020564,2]
[379740380,1755394251574,1662.0,0.000287,120]
[379740489,1755394258613,324.57,0.00019912,2]
[379740490,1755394264056,248.12253601,0.00020292,2]
[379740493,1755394276395,500.0,0.00018834,2]
[379740510,1755394313440,502.29710685,0.00028767,120]
[379740521,1755394340183,320.44,0.00019913,2]
[379740523,1755394352045,557.57,0.00020292,2]
[379740525,1755394355372,165.82743948,0.00020206,2]
[379740530,1755394388868,1539.05408277,0.000199,2]
[379740531,1755394421447,316.36,0.00019912,2]
[379740540,1755394501390,312.33,0.00019915,2]
[379740541,1755394504468,153.0,0.00028767,120]
[379740545,1755394567321,1487.63545628,0.000199,2]
[379740547,1755394582823,308.36,0.00019899,2]
[379740550,1755394664159,304.43,0.0001991,2]
[379740559,1755394738134,1438.04760766,0.000199,2]
[379740564,1755394749184,300.56,0.00019912,2]